bitfinex-derivatives/quotes_BTCF0:USTF0_20251130
["timestamp","ask_amount","ask_price","bid_price","bid_amount"]
[1764538155708,0.15379072,91095.0,91094.0,0.0562384]
[1764538156418,0.15379072,91095.0,91094.0,0.0602384]
[1764538157517,0.12553072,91095.0,91094.0,0.0602384]
[1764538157711,0.00016476,91095.0,91094.0,0.0602384]
[1764538158308,0.38906,91110.0,91109.0,0.0562366]
[1764538158716,0.50410665,91110.0,91109.0,0.0562366]
[1764538159522,0.50410665,91110.0,91109.0,0.06737219]
[1764538159824,0.50410665,91110.0,91109.0,0.05739559]
[1764538163218,0.50410665,91110.0,91109.0,0.01213559]
[1764538164517,0.50410665,91110.0,91109.0,0.03494559]
[1764538166116,0.50410665,91110.0,91109.0,0.06826219]
[1764538166319,0.51508315,91110.0,91109.0,0.06826219]
[1764538167423,0.51508315,91110.0,91109.0,0.05728559]
[1764538167625,0.51508315,91110.0,91109.0,0.03494559]
[1764538168724,0.51508315,91110.0,91109.0,0.01213559]
[1764538170321,0.51616926,91110.0,91109.0,0.01213559]
[1764538171029,0.50519276,91110.0,91109.0,0.01213559]
[1764538171223,0.50519276,91110.0,91109.0,0.05728559]
[1764538171729,0.50519276,91110.0,91109.0,0.03494559]
[1764538174733,0.50519276,91110.0,91109.0,0.05728559]
[1764538183030,0.50519276,91110.0,91109.0,0.08473559]
[1764538185342,0.50519276,91110.0,91109.0,0.03958559]
[1764538185531,0.50519276,91110.0,91109.0,0.06291559]
[1764538186639,0.50519276,91110.0,91109.0,0.03958559]
[1764538188140,0.50519276,91110.0,91109.0,0.06291559]
[1764538189843,0.50519276,91110.0,91109.0,0.08558559]
[1764538194545,0.51616916,91110.0,91109.0,0.08558559]
[1764538198436,0.50519276,91110.0,91109.0,0.08558559]
[1764538199234,0.47693276,91110.0,91109.0,0.08558559]
[1764538199439,0.00010869,91119.0,91118.0,0.046]
[1764538199641,0.00010869,91119.0,91118.0,0.48580659]
[1764538199845,0.00010869,91119.0,91118.0,0.4068]
[1764538200046,0.00010869,91119.0,91118.0,0.48580616]
[1764538200245,0.00010869,91119.0,91118.0,0.4068]
[1764538200946,0.03052869,91119.0,91118.0,0.4068]
[1764538201247,0.03052869,91119.0,91118.0,0.48581133]
[1764538201440,0.03052869,91119.0,91118.0,0.4068]
[1764538202447,0.03052869,91119.0,91118.0,0.4148]
[1764538203541,0.03042,91110.0,91109.0,0.02745]
[1764538204045,0.15668948,91110.0,91109.0,0.02745]
[1764538205739,0.15868948,91110.0,91109.0,0.02745]
[1764538206441,0.15768948,91110.0,91109.0,0.02745]
[1764538206651,0.15868948,91110.0,91109.0,0.02745]
[1764538207351,0.16168948,91110.0,91109.0,0.02745]
[1764538208246,0.56168948,91110.0,91109.0,0.02745]
[1764538208448,0.22168948,91110.0,91109.0,0.02745]
[1764538208750,0.24347291,91110.0,91109.0,0.02745]
[1764538208944,0.24747291,91110.0,91109.0,0.02745]
[1764538209545,0.24347291,91110.0,91109.0,0.02745]
[1764538209745,0.24747291,91110.0,91109.0,0.02745]
[1764538210150,0.18347291,91110.0,91109.0,0.02745]
[1764538210453,0.18747291,91110.0,91109.0,0.02745]
[1764538211751,0.18647291,91110.0,91109.0,0.02745]
[1764538211951,0.18747291,91110.0,91109.0,0.02745]
[1764538212149,0.18747291,91110.0,91109.0,0.07345]
[1764538212343,0.16168948,91110.0,91109.0,0.07345]
[1764538212543,0.16068948,91110.0,91109.0,0.07345]
[1764538212750,0.16168948,91110.0,91109.0,0.07345]
[1764538213346,0.16068948,91110.0,91109.0,0.07345]
[1764538213652,0.16168948,91110.0,91109.0,0.07345]
[1764538217248,0.14647948,91110.0,91109.0,0.0844266]
[1764538217454,0.005,91110.0,91109.0,0.0844266]
[1764538219048,0.00010869,91119.0,91118.0,0.0581355]
[1764538220148,0.00010869,91119.0,91118.0,0.0601355]
[1764538221258,0.00110869,91119.0,91118.0,0.0731355]
[1764538222052,0.00110869,91119.0,91118.0,0.1005855]
[1764538222565,0.02438869,91119.0,91118.0,0.1005855]
[1764538224250,0.00110869,91119.0,91118.0,0.1005855]
[1764538229963,0.02438869,91119.0,91118.0,0.1005855]
[1764538231465,0.04697869,91119.0,91118.0,0.1005855]
[1764538235068,0.00110869,91119.0,91118.0,0.1005855]
[1764538235465,0.02438869,91119.0,91118.0,0.1005855]
[1764538235661,0.00110869,91119.0,91118.0,0.1005855]
[1764538237176,0.04697869,91119.0,91118.0,0.1005855]
[1764538237764,0.02438869,91119.0,91118.0,0.1005855]
[1764538238579,0.04697869,91119.0,91118.0,0.1005855]
[1764538253683,0.02438869,91119.0,91118.0,0.1005855]
[1764538254686,0.00110869,91119.0,91118.0,0.1005855]
[1764538255088,0.02131869,91119.0,91118.0,0.1005855]
[1764538255983,0.00110869,91119.0,91118.0,0.1005855]
[1764538267896,0.00110869,91119.0,91118.0,0.0985855]
[1764538268901,0.00010869,91119.0,91118.0,0.0875855]
[1764538276614,0.00010869,91119.0,91118.0,0.4483855]
[1764538279917,0.00010869,91119.0,91118.0,0.0875855]
[1764538280122,0.00010869,91119.0,91118.0,0.4483855]
[1764538281413,0.00010869,91119.0,91118.0,0.0875855]
[1764538281617,0.00010869,91119.0,91118.0,0.4483855]
[1764538283117,0.02031869,91119.0,91118.0,0.4483855]
[1764538283307,0.04052869,91119.0,91118.0,0.4483855]
[1764538284514,0.00010869,91119.0,91118.0,0.4483855]
[1764538285218,0.00010869,91119.0,91118.0,0.0875855]
[1764538295019,0.00010869,91119.0,91118.0,0.0601355]
[1764538311447,0.00010869,91119.0,91118.0,0.4209355]
[1764538314951,0.00010869,91119.0,91118.0,0.0601355]
[1764538315252,0.00010869,91119.0,91118.0,0.4209355]
[1764538316151,0.04052869,91119.0,91118.0,0.4209355]
[1764538317652,0.02031869,91119.0,91118.0,0.4209355]
[1764538318654,0.00010869,91119.0,91118.0,0.4209355]
[1764538319351,0.16171855,91119.0,91118.0,0.4209355]
[1764538319654,0.16171855,91119.0,91118.0,0.5940555]
[1764538322651,0.16171855,91119.0,91118.0,0.4209355]
[1764538322858,0.16171855,91119.0,91118.0,0.5940555]
[1764538326357,0.16171855,91119.0,91118.0,0.2332555]
[1764538330160,0.16171855,91119.0,91118.0,0.0601355]
[1764538339270,0.16171855,91119.0,91118.0,0.0728955]
[1764538344069,0.12129855,91119.0,91118.0,0.0728955]
[1764538344267,0.00027435,91126.0,91118.0,0.0728955]
[1764538344464,0.00027435,91126.0,91125.0,0.0542946]
[1764538344864,0.12133955,91126.0,91125.0,0.0542946]
[1764538345866,0.12133955,91126.0,91125.0,0.0602946]
[1764538346368,0.12133955,91126.0,91125.0,0.0622946]
[1764538352379,0.00027435,91126.0,91125.0,0.0622946]
[1764538366990,4.35e-06,91126.0,91125.0,0.0622946]
[1764538371495,4.35e-06,91126.0,91125.0,0.4230946]
[1764538373196,4.35e-06,91126.0,91125.0,0.7830946]
[1764538373394,4.35e-06,91126.0,91125.0,0.88145348]
[1764538373697,4.35e-06,91126.0,91125.0,0.7830946]
[1764538374792,4.35e-06,91126.0,91125.0,0.7770946]
[1764538374988,4.35e-06,91126.0,91125.0,0.4170946]
[1764538375187,4.35e-06,91126.0,91125.0,0.7970946]
[1764538375496,4.35e-06,91126.0,91125.0,0.7950946]
[1764538376293,4.35e-06,91126.0,91125.0,0.9681346]
[1764538381799,4.35e-06,91126.0,91125.0,1.3289346]
[1764538382400,4.35e-06,91126.0,91125.0,0.6073346]
[1764538382587,4.35e-06,91126.0,91125.0,1.3289346]
[1764538387294,4.35e-06,91126.0,91125.0,1.46683459]
[1764538387594,4.35e-06,91126.0,91125.0,1.58793459]
[1764538387796,4.35e-06,91126.0,91125.0,1.4500346]
[1764538388199,0.04145423,91166.0,91165.0,0.0553998]
[1764538388401,0.04145423,91166.0,91165.0,0.2283998]
[1764538388600,0.1242872,91166.0,91165.0,0.2283998]
[1764538388906,0.00027423,91166.0,91165.0,0.2283998]
[1764538389699,4.23e-06,91166.0,91165.0,0.2283998]
[1764538389908,0.04174,91188.0,91187.0,0.0553971]
[1764538390102,0.04174,91188.0,91187.0,0.2283971]
[1764538390407,0.3608,91189.0,91187.0,0.1839671]
[1764538390601,0.3608,91189.0,91188.0,0.05803]
[1764538390808,0.40254,91198.0,91197.0,0.04443]
[1764538391009,0.40254,91198.0,91197.0,0.228396]
[1764538391206,0.3608,91222.0,91197.0,0.94507945]
[1764538391510,0.0586,91220.0,91219.0,0.0109633]
[1764538391694,0.0586,91220.0,91219.0,0.7325633]
[1764538391900,0.18420588,91220.0,91219.0,0.7325633]
[1764538392094,0.18420588,91220.0,91219.0,0.7656433]
[1764538392298,0.18420588,91220.0,91219.0,0.7416066]
[1764538392494,0.04555,91220.0,91219.0,0.7860366]
[1764538394305,0.04555,91220.0,91219.0,0.7306433]
[1764538394504,0.16197463,91220.0,91219.0,0.5575633]
[1764538395998,0.56197463,91220.0,91219.0,0.5575633]
[1764538396711,0.56197463,91220.0,91219.0,0.0485633]
[1764538397007,0.56197463,91220.0,91205.0,0.3608]
[1764538397008,0.04956,91206.0,91205.0,0.3608]
[1764538397408,0.17265057,91206.0,91205.0,0.3608]
[1764538398698,0.16483057,91206.0,91205.0,0.42906]
[1764538402509,0.12309057,91206.0,91205.0,0.42906]
[1764538402712,0.18801404,91230.0,91229.0,0.0578421]
[1764538403012,0.04174,91225.0,91224.0,0.09767]
[1764538403512,0.16596166,91225.0,91224.0,0.09767]
[1764538405010,0.16596166,91225.0,91224.0,0.09867]
[1764538406411,0.16596166,91225.0,91224.0,0.001]
[1764538409517,0.19668166,91225.0,91224.0,0.13619]
[1764538409716,0.19668166,91225.0,91224.0,0.05294]
[1764538409918,0.19668166,91225.0,91224.0,0.001]
[1764538410714,0.01394,91221.0,91220.0,0.00016448]
[1764538411021,0.1421658,91221.0,91220.0,0.00016448]
[1764538411214,0.5021658,91221.0,91220.0,0.00016448]
[1764538411626,0.1421658,91221.0,91220.0,0.00016448]
[1764538411919,0.1421658,91221.0,91220.0,0.00116448]
[1764538412120,0.01394,91197.0,91196.0,0.41274]
[1764538412331,0.01394,91197.0,91196.0,0.46547]
[1764538412509,0.13125998,91197.0,91196.0,0.41274]
[1764538412709,0.13125998,91197.0,91196.0,0.3608]
[1764538414325,0.13125998,91197.0,91196.0,0.49599]
[1764538415022,0.11731998,91197.0,91196.0,0.49599]
[1764538415521,0.13375809,91205.0,91204.0,0.10467]
[1764538415726,0.01394,91205.0,91204.0,0.10467]
[1764538415926,0.13481069,91205.0,91204.0,0.10467]
[1764538416929,0.12087069,91205.0,91204.0,0.46547]
[1764538418026,0.00016386,91206.0,91205.0,0.115635]
[1764538420228,0.00016386,91206.0,91205.0,0.17442822]
[1764538421827,0.00016386,91206.0,91205.0,0.115635]
[1764538422632,0.00016386,91206.0,91205.0,0.17467525]
[1764538423332,0.00016386,91206.0,91205.0,0.115635]
[1764538424531,0.00016386,91206.0,91205.0,0.476435]
[1764538425440,0.00016386,91206.0,91205.0,0.115635]
[1764538425734,0.00016386,91206.0,91205.0,0.476435]
[1764538427025,0.0109623,91228.0,91227.0,0.10313]
[1764538427226,0.03325214,91228.0,91227.0,0.10313]
[1764538427426,0.14742568,91228.0,91227.0,0.10313]
[1764538428127,0.14742568,91228.0,91227.0,0.10413]
[1764538431840,0.13646338,91228.0,91227.0,0.10413]
[1764538432637,0.11417354,91228.0,91227.0,0.10413]
[1764538433030,0.0109616,91234.0,91233.0,0.10313]
[1764538433438,0.12759273,91234.0,91233.0,0.10313]
[1764538434134,0.12759273,91234.0,91233.0,0.10413]
[1764538438433,0.53988024,91234.0,91233.0,0.001]
[1764538439535,0.0109633,91219.0,91218.0,0.05048448]
[1764538439748,0.0109633,91219.0,91218.0,0.10329448]
[1764538439945,0.12301592,91219.0,91218.0,0.10329448]
[1764538440243,0.0109623,91228.0,91227.0,0.10313]
[1764538440637,0.12687363,91228.0,91227.0,0.10313]
[1764538441142,0.12687363,91228.0,91227.0,0.05032]
[1764538441343,0.0109626,91225.0,91224.0,0.08113]
[1764538441735,0.13397836,91225.0,91224.0,0.13394]
[1764538443049,0.13397836,91225.0,91224.0,0.13494]
[1764538446044,0.12301576,91225.0,91224.0,0.13494]
[1764538446439,0.0109623,91229.0,91225.0,0.0109626]
[1764538446638,0.0909623,91229.0,91228.0,0.10313]
[1764538447046,0.21246588,91229.0,91228.0,0.10313]
[1764538449451,0.21246588,91229.0,91228.0,0.10413]
[1764538450647,0.20150358,91229.0,91228.0,0.10413]
[1764538452239,0.22384938,91229.0,91228.0,0.10413]
[1764538452853,0.20150358,91229.0,91228.0,0.10413]
[1764538453042,0.20150358,91229.0,91228.0,0.1150923]
[1764538455344,0.20150358,91229.0,91228.0,0.10413]
[1764538461163,0.22385506,91229.0,91228.0,0.10413]
[1764538461953,0.14385506,91229.0,91228.0,0.10413]
[1764538462261,0.58385506,91229.0,91228.0,0.10413]
[1764538469158,0.58385506,91229.0,91228.0,0.13125]
[1764538478071,0.58385506,91229.0,91228.0,0.07844]
[1764538478870,0.58385506,91229.0,91228.0,0.12124]
[1764538484565,0.58385506,91229.0,91228.0,0.001]
[1764538485076,0.58385506,91229.0,91224.0,0.03081]
[1764538485271,0.0109631,91221.0,91218.0,0.00016448]
[1764538485472,0.0109635,91218.0,91216.0,0.0590548]
[1764538485676,0.4609635,91218.0,91217.0,0.02407996]
[1764538485878,0.60227286,91218.0,91217.0,0.02407996]
[1764538486377,0.60227286,91218.0,91217.0,0.06616996]
[1764538486575,0.60227286,91218.0,91217.0,0.11092996]
[1764538486874,0.60227286,91218.0,91217.0,0.11292996]
[1764538487262,0.60227286,91218.0,91217.0,0.11392996]
[1764538488067,0.16227286,91218.0,91217.0,0.11392996]
[1764538491573,0.37227286,91218.0,91217.0,0.11392996]
[1764538491769,0.37227286,91218.0,91217.0,0.003]
[1764538491975,0.0109645,91209.0,91208.0,0.00016448]
[1764538492280,1.09888142,91209.0,91208.0,0.00016448]
[1764538493169,1.09988142,91209.0,91208.0,8e-08]
[1764538500686,0.0109669,91189.0,91188.0,0.0664]
[1764538500878,0.0109675,91184.0,91183.0,0.08695494]
[1764538501078,0.0909675,91184.0,91183.0,0.08695494]
[1764538501291,0.21269079,91184.0,91183.0,0.08695494]
[1764538505288,0.54269079,91184.0,91183.0,0.08695494]
[1764538506679,0.00999999,91210.0,91183.0,0.40010494]
[1764538506880,0.02324,91210.0,91209.0,0.0590548]
[1764538507089,0.11721908,91209.0,91208.0,0.0109647]
[1764538507384,0.08299,91209.0,91208.0,0.3717647]
[1764538507588,0.20020908,91209.0,91208.0,0.3717647]
[1764538507882,0.11721908,91209.0,91208.0,0.3717647]
[1764538508483,0.00016448,91218.0,91217.0,0.0109636]
[1764538508686,0.00016448,91218.0,91217.0,0.3717636]
[1764538508891,0.11538706,91218.0,91217.0,0.3717636]
[1764538509884,0.11538706,91218.0,91217.0,0.3727636]
[1764538510082,0.11538706,91218.0,91217.0,0.3737636]
[1764538511284,0.15470706,91218.0,91217.0,0.3737636]
[1764538512193,0.19837706,91218.0,91217.0,0.3737636]
[1764538534208,0.19837706,91218.0,91217.0,0.43265867]
[1764538535211,0.19837706,91218.0,91217.0,0.3737636]
[1764538535601,0.19837706,91218.0,91217.0,0.0129636]
[1764538535804,0.19837706,91218.0,91217.0,0.3737636]
[1764538536211,0.19837706,91218.0,91217.0,0.45218636]
[1764538536614,0.19837706,91218.0,91217.0,0.09138636]
[1764538536815,0.19837706,91218.0,91217.0,0.45218636]
[1764538537210,0.19837706,91218.0,91217.0,0.3737636]
[1764538548624,0.19854154,91218.0,91217.0,0.3737636]
[1764538548923,8e-08,91218.0,91217.0,0.3737636]
[1764538550120,0.10318008,91218.0,91217.0,0.3737636]
[1764538555428,8e-08,91218.0,91217.0,0.3737636]
[1764538556915,8e-08,91218.0,91217.0,0.3727636]
[1764538557122,8e-08,91218.0,91217.0,0.3717636]
[1764538558431,8e-08,91218.0,91217.0,0.5447636]
[1764538561134,0.22014465,91218.0,91217.0,0.47034237]
[1764538561431,0.22014465,91218.0,91217.0,0.3717636]
[1764538574034,0.22014465,91218.0,91217.0,0.45062963]
[1764538574329,0.16534465,91218.0,91217.0,0.3717636]
[1764538574523,0.00016456,91218.0,91217.0,0.3717636]
[1764538575433,0.04627456,91218.0,91217.0,0.3717636]
[1764538577032,0.09336456,91218.0,91217.0,0.3717636]
[1764538577536,0.04627456,91218.0,91217.0,0.3717636]
[1764538577736,0.09336456,91218.0,91217.0,0.3717636]
[1764538578132,0.00016456,91218.0,91217.0,0.3717636]
[1764538578333,8e-08,91218.0,91217.0,0.7917636]
[1764538578538,0.03441,91230.0,91227.0,0.0109624]
[1764538578740,0.02565,91236.0,91235.0,0.0109614]
[1764538579136,0.07176,91236.0,91235.0,0.0109614]
[1764538579326,0.11885,91236.0,91235.0,0.0109614]
[1764538581533,0.11985,91236.0,91235.0,0.0109614]
[1764538583536,0.15138841,91236.0,91232.0,0.0109617]
[1764538583744,0.08717,91235.0,91234.0,0.0109614]
[1764538584043,0.20643595,91235.0,91234.0,0.0109614]
[1764538585541,0.20743595,91235.0,91234.0,0.0109614]
[1764538592947,0.20743595,91235.0,91234.0,0.3717614]
[1764538607351,0.20743595,91235.0,91234.0,0.45062043]
[1764538608355,0.20743595,91235.0,91234.0,0.3717614]
[1764538613167,0.20760043,91235.0,91234.0,0.3717614]
[1764538613666,0.20760043,91235.0,91234.0,0.36063552]
[1764538613667,0.21839735,91235.0,91234.0,0.36063552]
[1764538613871,0.1206824,91227.0,91226.0,4.75e-06]
[1764538614072,0.10972,91218.0,91217.0,0.3608]
[1764538614474,0.23341832,91218.0,91217.0,0.3608]
[1764538620373,0.23341832,91218.0,91216.0,0.0109636]
[1764538620577,0.23341832,91218.0,91217.0,0.3608]
[1764538622574,0.08495,91217.0,91216.0,0.0109636]
[1764538622779,0.08495,91217.0,91216.0,0.3717636]
[1764538623079,0.19911286,91217.0,91216.0,0.3717636]
[1764538628778,0.20011286,91217.0,91216.0,0.3717636]
[1764538629375,0.08595,91217.0,91216.0,0.3717636]
[1764538630376,0.09395,91217.0,91216.0,0.3717636]
[1764538635773,0.05095,91217.0,91216.0,0.3717636]
[1764538635974,0.009,91217.0,91216.0,0.3717636]
[1764538636279,0.05203,91217.0,91216.0,0.3717636]
[1764538640283,0.05203,91217.0,91216.0,0.45051678]
[1764538641284,0.009,91217.0,91216.0,0.3717636]
[1764538644487,0.09211,91217.0,91216.0,0.3717636]
[1764538653392,0.09211,91217.0,91216.0,0.45067461]
[1764538662101,0.09211,91217.0,91216.0,0.3717636]
[1764538662499,0.09211,91217.0,91216.0,0.0109636]
[1764538662697,0.09211,91217.0,91216.0,0.3717636]
[1764538664200,0.09211,91217.0,91216.0,0.5446436]
[1764538667908,0.09211,91217.0,91211.0,0.09857525]
[1764538667909,0.0109637,91216.0,91211.0,0.09857525]
[1764538668100,0.1143753,91203.0,91202.0,0.09857525]
[1764538668298,0.1143753,91203.0,91193.0,0.0109664]
[1764538668299,0.08088,91194.0,91193.0,0.09857525]
[1764538668502,0.08088,91191.0,91190.0,0.03846]
[1764538668706,0.08088,91187.0,91186.0,0.25344]
[1764538669904,0.08088,91187.0,91186.0,0.08056]
[1764538670213,0.08088,91187.0,91177.0,0.00016448]
[1764538670214,0.10341,91184.0,91177.0,0.00016448]
[1764538670613,0.22817017,91184.0,91177.0,0.00016448]
[1764538671308,0.22817017,91184.0,91179.0,0.0109681]
[1764538671509,0.23117017,91184.0,91177.0,0.00016448]
[1764538673014,0.23117017,91184.0,91178.0,0.0109682]
[1764538673407,0.23117017,91184.0,91181.0,0.0109678]
[1764538674710,0.23117017,91184.0,91183.0,0.08066494]
[1764538680713,0.20864017,91184.0,91183.0,0.08066494]
[1764538680918,0.003,91184.0,91183.0,0.08066494]
[1764538681903,0.04203,91184.0,91183.0,0.08066494]
[1764538682304,0.08388,91184.0,91183.0,0.08066494]
[1764538683916,0.04203,91184.0,91183.0,0.08066494]
[1764538684316,0.003,91184.0,91183.0,0.08066494]
[1764538684517,0.003,91184.0,91183.0,0.44146494]
[1764538690617,0.003,91184.0,91183.0,0.61442494]
[1764538692625,0.08388,91184.0,91183.0,0.61442494]
[1764538692931,0.04203,91184.0,91183.0,0.61442494]
[1764538693135,0.003,91184.0,91183.0,0.61442494]
[1764538694735,0.00016448,91196.0,91195.0,0.0995862]
[1764538695930,0.00116448,91196.0,91195.0,0.0995862]
[1764538696132,0.00516448,91196.0,91195.0,0.0995862]
[1764538700629,0.00516448,91196.0,91195.0,0.2725062]
[1764538702637,0.41,91208.0,91207.0,0.0995848]
[1764538702829,0.44754,91208.0,91207.0,0.2725048]
[1764538703228,0.44754,91208.0,91207.0,0.26154]
[1764538703429,0.1271,91200.0,91199.0,0.45709]
[1764538703629,0.1271,91200.0,91199.0,0.63001]
[1764538704835,0.1281,91200.0,91199.0,0.63001]
[1764538705425,0.1311,91200.0,91199.0,0.63001]
[1764538707643,0.1311,91200.0,91199.0,0.26921]
[1764538711840,0.1311,91200.0,91199.0,0.09629]
[1764538712041,0.1271,91192.0,91191.0,0.4680567]
[1764538712232,0.1271,91192.0,91191.0,0.6409767]
[1764538712639,0.09633,91192.0,91191.0,0.6409767]
[1764538713246,0.05013,91192.0,91191.0,0.6409767]
[1764538714042,0.001,91192.0,91191.0,0.6409767]
[1764538714749,0.05013,91192.0,91191.0,0.6409767]
[1764538717848,0.09733,91192.0,91191.0,0.6409767]
[1764538718447,0.1281,91192.0,91191.0,0.6409767]
[1764538719049,0.1281,91192.0,91191.0,0.4680567]
[1764538719852,0.1281,91192.0,91191.0,0.1072567]
[1764538721048,0.1281,91192.0,91190.0,0.00016448]
[1764538721049,0.1072967,91191.0,91190.0,0.00016448]
[1764538721354,0.23255483,91191.0,91190.0,0.00016448]
[1764538722352,0.23355483,91191.0,91190.0,0.00016448]
[1764538722957,0.23255483,91191.0,91190.0,0.00016448]
[1764538723158,0.23355483,91191.0,91190.0,0.00016448]
[1764538726151,0.59435483,91191.0,91190.0,0.00016448]
[1764538736170,0.1333876,91184.0,91183.0,0.00010494]
[1764538736462,0.25990575,91184.0,91183.0,4.94e-06]
[1764538737449,0.26000575,91184.0,91183.0,4.94e-06]
[1764538737652,0.26000575,91184.0,91183.0,0.09296494]
[1764538737854,0.26000575,91184.0,91183.0,0.04522494]
[1764538738055,0.26000575,91184.0,91183.0,0.00200494]
[1764538738456,0.24903815,91184.0,91183.0,0.00200494]
[1764538738766,0.04717,91184.0,91183.0,0.09296494]
[1764538739861,0.09495,91184.0,91183.0,0.09296494]
[1764538753778,0.0001,91184.0,91183.0,0.09296494]
[1764538754479,0.04319,91184.0,91183.0,0.09296494]
[1764538754979,0.08926,91184.0,91183.0,0.09296494]
[1764538755574,0.11395,91184.0,91183.0,0.09296494]
[1764538758873,0.08926,91184.0,91183.0,0.09296494]
[1764538760084,0.11395,91184.0,91183.0,0.09296494]
[1764538770888,0.11395,91184.0,91183.0,0.00200494]
[1764538771077,0.23306919,91184.0,91183.0,0.00200494]
[1764538771277,0.59386919,91184.0,91183.0,0.00200494]
[1764538771586,0.08007,91175.0,91170.0,0.3608]
[1764538771786,0.08007,91175.0,91171.0,0.17292]
[1764538771989,0.08007,91175.0,91160.0,0.14617744]
[1764538771990,0.10436,91164.0,91163.0,0.09857525]
[1764538772287,0.08007,91153.0,91150.0,0.17292]
[1764538772481,0.08016568,91153.0,91150.0,0.17292]
[1764538772680,0.20403176,91153.0,91150.0,0.17292]
[1764538772879,0.20403176,91153.0,91150.0,0.1838916]
[1764538773082,0.08007,91151.0,91150.0,0.2664916]
[1764538773589,9.568e-05,91153.0,91152.0,0.0826]
[1764538773791,0.08016568,91153.0,91152.0,0.0826]
[1764538774782,9.568e-05,91153.0,91152.0,0.0826]
[1764538775185,9.568e-05,91153.0,91152.0,0.0836]
[1764538775392,0.05700494,91153.0,91152.0,0.0926]
[1764538775600,0.09731494,91153.0,91152.0,0.0926]
[1764538778490,0.01724494,91153.0,91152.0,0.4534]
[1764538778890,0.00016448,91162.0,91161.0,0.0935703]
[1764538779091,0.00016448,91162.0,91161.0,0.6273303]
[1764538779908,0.03992448,91162.0,91161.0,0.6273303]
[1764538781395,0.03992448,91162.0,91161.0,0.6333303]
[1764538781596,0.00016448,91162.0,91161.0,0.6333303]
[1764538784193,0.07883448,91162.0,91161.0,0.6333303]
[1764538785894,0.07883448,91162.0,91161.0,0.62236]
[1764538786094,0.08980468,91162.0,91161.0,0.3668]
[1764538787392,0.08980468,91162.0,91161.0,0.006]
[1764538790013,0.07883448,91162.0,91161.0,0.006]
[1764538790296,0.08980468,91162.0,91161.0,0.006]
[1764538790496,0.07883448,91162.0,91161.0,0.006]
[1764538790892,0.09598387,91162.0,91161.0,0.006]
[1764538795301,0.21671399,91162.0,91161.0,0.006]
[1764538795704,0.0866915,91151.0,91150.0,0.37184312]
[1764538796004,0.22805157,91151.0,91150.0,0.37184312]
[1764538796802,0.22805157,91151.0,91150.0,0.38381472]
[1764538797309,0.21708007,91151.0,91150.0,0.46244472]
[1764538797506,0.09286939,91151.0,91150.0,0.46244472]
[1764538797707,0.09286939,91151.0,91150.0,0.46944472]
[1764538804907,0.05395939,91151.0,91150.0,0.46944472]
[1764538805205,0.05395939,91151.0,91150.0,0.66239472]
[1764538805206,0.01714939,91151.0,91150.0,0.66239472]
[1764538805405,0.07572,91161.0,91160.0,0.0896004]
[1764538805603,0.09286993,91161.0,91160.0,0.0896004]
[1764538807006,0.09286993,91161.0,91160.0,0.0926004]
[1764538807513,0.09286993,91161.0,91160.0,0.0936004]
[1764538808210,0.09286993,91161.0,91160.0,0.004]
[1764538810712,0.20922724,91161.0,91160.0,0.004]
[1764538819215,0.57002724,91161.0,91160.0,0.004]
[1764538819806,0.0709,91144.0,91131.0,0.09872474]
[1764538820015,0.07058,91107.0,91106.0,0.03372099]
[1764538820221,0.08772993,91107.0,91106.0,0.0109358]
[1764538820413,0.2139978,91107.0,91106.0,0.0445458]
[1764538820611,0.2139978,91107.0,91106.0,0.0841258]
[1764538821118,0.2139978,91107.0,91106.0,0.0851258]
[1764538831426,0.5747978,91107.0,91106.0,0.0851258]
[1764538838425,0.5042178,91107.0,91106.0,0.0961027]
[1764538838630,0.37794993,91107.0,91106.0,0.0961027]
[1764538839030,0.47035993,91107.0,91106.0,0.0961027]
[1764538841337,0.10955993,91107.0,91106.0,0.0961027]
[1764538842134,0.10955993,91107.0,91106.0,0.0851258]
[1764538847740,0.10956947,91107.0,91106.0,0.0851258]
[1764538849352,0.13938035,91107.0,91106.0,0.0851258]
[1764538850938,0.25839853,91107.0,91106.0,0.0119358]
[1764538854842,0.25840016,91107.0,91106.0,0.0119358]
[1764538855640,0.25840016,91107.0,91106.0,0.0971558]
[1764538859759,0.25840016,91107.0,91106.0,0.0537358]
[1764538861359,0.25840016,91107.0,91106.0,0.0971558]
[1764538863165,0.25839989,91107.0,91106.0,0.0971558]
[1764538870672,0.22858901,91107.0,91106.0,0.0971558]
[1764538871069,0.13617901,91107.0,91106.0,0.0971558]
[1764538872063,0.01716083,91107.0,91106.0,0.0971558]
[1764538872264,0.00016458,91116.0,91106.0,0.0971558]
[1764538872265,0.00016458,91116.0,91115.0,0.08522]
[1764538872463,0.04364458,91116.0,91115.0,0.0961959]
[1764538873773,0.04564458,91116.0,91115.0,0.0961959]
[1764538873974,0.08959458,91116.0,91115.0,0.0961959]
[1764538884281,0.10675255,91116.0,91115.0,0.0961959]
[1764538884683,0.01932255,91116.0,91115.0,0.0961959]
[1764538893081,0.01932164,91116.0,91115.0,0.0961959]
[1764538896293,0.09428164,91116.0,91115.0,0.08522]
[1764538896688,0.09428164,91116.0,91115.0,0.0961959]
[1764538897396,0.07712458,91116.0,91115.0,0.0961959]
[1764538903096,0.43792458,91116.0,91115.0,0.0961959]
[1764538903898,0.07619,91107.0,91106.0,0.0446558]
[1764538904102,0.43699,91107.0,91106.0,0.0446558]
[1764538904400,0.43699,91107.0,91106.0,0.0839758]
[1764538904401,0.55716711,91107.0,91106.0,0.0839758]
[1764538907304,0.55716711,91107.0,91106.0,0.0949527]
[1764538908400,0.55716711,91107.0,91106.0,0.0109358]
[1764538913408,0.55716711,91107.0,91106.0,0.0839758]
[1764538925221,0.57417711,91107.0,91106.0,0.0109358]
[1764538926607,0.55716711,91107.0,91106.0,0.0839758]
[1764538928802,0.55716711,91107.0,91106.0,0.0109358]
[1764538932918,0.58654587,91107.0,91106.0,0.0109358]
[1764538934721,0.58654587,91107.0,91106.0,0.0446558]
[1764538938711,0.58654587,91107.0,91106.0,0.0813458]
[1764538938916,0.55716711,91107.0,91106.0,0.0813458]
[1764538939117,0.55428711,91107.0,91106.0,0.0813458]
[1764538940620,0.19348711,91107.0,91106.0,0.0813458]
[1764538943219,0.03642,91107.0,91106.0,0.0813458]
[1764538943724,0.3608,91110.0,91109.0,0.06862]
[1764538946138,0.3618,91110.0,91109.0,0.06862]
[1764538949729,0.001,91110.0,91109.0,0.06862]
[1764538963538,0.00016458,91116.0,91115.0,0.06143]
[1764538963842,0.41949,91121.0,91120.0,0.0724053]
[1764538966135,0.4334651,91121.0,91120.0,0.0724053]
[1764538966437,0.4334651,91121.0,91120.0,0.06143]
[1764538969147,0.4334651,91121.0,91120.0,0.0724053]
[1764538969647,0.4334651,91121.0,91120.0,0.06143]